lending/lending_fUSD_20250316
["ID","MTS","AMOUNT","RATE_DAILY","PERIOD"]
[356242192,1742130643052,-8587.11046504,0.00048797,4]
[356242198,1742130644299,-5973.99869469,0.00048797,4]
[356242199,1742130644311,-19254.49772415,0.00048797,4]
[356242200,1742130644320,-1256.61821381,0.00048797,4]
[356242201,1742130644332,-1553.47000001,0.00048797,4]
[356242219,1742130645867,-564.18,0.00046219,30]
[356242220,1742130646038,-215.23,0.00046219,30]
[356242221,1742130646048,-150.0,0.00046904,30]
[356242222,1742130646057,-150.0,0.00046904,30]
[356242223,1742130646067,-345.39,0.00046904,30]
[356242224,1742130646076,-150.0,0.00046904,30]
[356242225,1742130646086,-441.42,0.00046904,30]
[356242226,1742130646095,-153.68,0.00046904,30]
[356242227,1742130646105,-985.75489105,0.00048797,4]
[356242229,1742130646206,-4132.2855259,0.00048797,4]
[356242396,1742131508642,99100.0,0.0001,2]
[356242397,1742131508674,100000.0,0.0001,2]
[356242398,1742131508704,99700.0,0.0001,2]
[356242399,1742131508735,31017.23386995,0.0001,2]
[356242406,1742131602201,-162.28401461,0.000215,30]
[356242407,1742131661599,-189.64102603,0.000215,30]
[356242421,1742131822242,30035.0,0.0002,3]
[356242427,1742131832087,-2925.946727,0.00021392,2]
[356242428,1742131832096,-6306.99763572,0.000215,30]
[356242429,1742131832107,-300.0,0.00021999,2]
[356242430,1742131832117,-16480.603886,0.00022,30]
[356242431,1742131832127,-156.66,0.00026849,2]
[356242432,1742131832137,-202.62603915,0.000269,4]
[356242433,1742131832147,-250.0,0.00028266,2]
[356242434,1742131832158,-1005.89989858,0.00029,7]
[356242435,1742131832167,-7221.41306562,0.0002997,2]
[356242436,1742131832177,-506.84632659,0.0002997,2]
[356242437,1742131832187,-5773.42476435,0.0003,2]
[356242438,1742131832197,-1448.1368759,0.0003,60]
[356242439,1742131832207,-150.0,0.00030069,2]
[356242440,1742131832217,-191.9662391,0.00030069,2]
[356242441,1742131832227,-376.74360622,0.00030069,2]
[356242442,1742131832237,-46125.10785562,0.0003007,30]
[356242443,1742131832250,-1455.57,0.0003007,30]
[356242444,1742131832262,-423.36402055,0.0003007,30]
[356242445,1742131832324,-1104.26443908,0.0003007,30]
[356242447,1742131832336,-2279.39902237,0.0003007,30]
[356242686,1742131837798,-17957.70500243,0.0003007,30]
[356242704,1742131837914,-3649.19203082,0.0003007,30]
[356242706,1742131837927,-384.72833441,0.0003007,30]
[356242712,1742131837974,-67046.80800002,0.0003007,30]
[356242724,1742131838088,-429.76989505,0.0003007,30]
[356242933,1742131840120,-500.0,0.00030069,2]
[356242935,1742131840130,-4098.48520707,0.0003007,30]
[356242952,1742131840288,-86253.14186,0.0003007,30]
[356242965,1742131840404,-1978.78552248,0.0003007,30]
[356242967,1742131840415,-59913.01,0.0003007,30]
[356242969,1742131840428,-421.38130715,0.0003007,30]
[356243200,1742131842957,-5983.73371174,0.0003007,30]
[356243202,1742131843015,-649.07010006,0.0003007,30]
[356243218,1742131844758,-915.44,0.0003007,30]
[356243220,1742131846081,-478.9914625,0.0003007,30]
[356243221,1742131846093,-9696.67586002,0.0003007,30]
[356243222,1742131846307,-23887.54221101,0.0003007,30]
[356243223,1742131846367,-634.6714049,0.0003007,30]
[356243230,1742131974163,250.0,0.00019,2]
[356243235,1742132337692,-156.66,0.00026849,2]
[356243236,1742132337713,-200.0,0.00027397,60]
[356243237,1742132337734,-4490.79212886,0.0002977,2]
[356243238,1742132337755,-2301.51499323,0.00029969,2]
[356243239,1742132337776,-425.5,0.00029974,2]
[356243240,1742132337796,-300.0,0.00030068,2]
[356243241,1742132337819,-192.20550405,0.00030068,2]
[356243242,1742132337852,-500.0,0.00030068,2]
[356243243,1742132337875,-500.0,0.00030068,2]
[356243244,1742132337897,-449.1749763,0.00030068,2]
[356243245,1742132337918,-157.384783,0.00030069,7]
[356243246,1742132337940,-157.384783,0.00030069,7]
[356243247,1742132337963,-2522.456,0.00030069,25]
[356243248,1742132337984,-188.938,0.00030069,25]
[356243249,1742132338007,-500.0,0.0003007,2]
[356243250,1742132338028,-7015.2,0.000301,2]
[356243251,1742132338050,-200.0,0.00030137,60]
[356243252,1742132338071,-500.0,0.00030344,2]
[356243253,1742132338092,-500.0,0.00030618,2]
[356243254,1742132338113,-500.0,0.00030892,2]
[356243255,1742132338136,-205.31393456,0.000309,5]
[356243256,1742132345989,1223.69129876,0.00029974,2]
[356243257,1742132351777,-3000.0,0.00031018,2]
[356243258,1742132351800,-500.0,0.00031166,2]
[356243259,1742132351822,-500.0,0.0003144,2]
[356243260,1742132351843,-500.0,0.00031713,2]
[356243261,1742132351865,-500.0,0.00031987,2]
[356243262,1742132360273,-500.0,0.00032261,2]
[356243263,1742132360295,-60418.0337694,0.000325,30]
[356243264,1742132360318,-500.0,0.00032535,2]
[356243265,1742132360339,-3252.69578881,0.00032652,2]
[356243266,1742132360361,-166.73,0.00032759,120]
[356243267,1742132360382,-500.0,0.00032809,2]
[356243268,1742132360404,-800.38,0.00032876,120]
[356243269,1742132360427,-800.38,0.00032876,120]
[356243270,1742132360448,-800.38,0.00032876,120]
[356243271,1742132360469,-800.38,0.00032876,120]
[356243272,1742132360494,-800.38,0.00032876,120]
[356243273,1742132360515,-800.38,0.00032876,120]
[356243274,1742132360536,-800.38,0.00032876,120]
[356243275,1742132360557,-800.38,0.00032876,120]
[356243276,1742132360579,-800.38,0.00032876,120]
[356243277,1742132360600,-800.38,0.00032876,120]
[356243278,1742132360621,-800.38,0.00032876,120]
[356243279,1742132360643,-800.38,0.00032876,120]
[356243280,1742132360666,-800.38,0.00032876,120]
[356243281,1742132360688,-800.38,0.00032876,120]
[356243282,1742132360713,-800.38,0.00032876,120]
[356243283,1742132360734,-800.38,0.00032876,120]
[356243284,1742132360755,-800.38,0.00032876,120]
[356243285,1742132360777,-800.38,0.00032876,120]
[356243286,1742132360800,-800.38,0.00032876,120]
[356243287,1742132360822,-800.38,0.00032876,120]
[356243288,1742132360844,-800.38,0.00032876,120]
[356243289,1742132360866,-800.38,0.00032876,120]
[356243290,1742132360888,-800.38,0.00032876,120]
[356243291,1742132360910,-800.38503233,0.00032876,120]
[356243292,1742132360931,-188.27567482,0.00032876,2]
[356243293,1742132360955,-448.47950945,0.00032876,2]
[356243294,1742132360977,-157.384783,0.00032876,7]
[356243295,1742132360999,-157.384783,0.00032876,7]
[356243296,1742132361020,-200.0,0.00032877,60]
[356243297,1742132378620,-500.0,0.00033083,7]
[356243298,1742132378643,-500.0,0.00033357,7]
[356243299,1742132378665,-500.0,0.00033589,2]
[356243300,1742132378687,-500.0,0.00033631,7]
[356243301,1742132378709,-205.31393456,0.00033829,6]
[356243302,1742132378730,-183.9,0.00033844,2]
[356243303,1742132378752,-500.0,0.00033905,7]
[356243304,1742132382088,151.0,0.00030074,7]
[356243305,1742132382685,151.0,0.00032876,7]
[356243306,1742132383909,6313.68,0.000301,2]
[356243307,1742132404640,500.0,0.0003121,5]
[356243308,1742132469089,-193.95,0.0003007,2]
[356243309,1742132469111,-500.0,0.00030073,2]
[356243310,1742132469133,-151.0,0.00030074,7]
[356243311,1742132469155,-155.0931,0.00030082,10]
[356243312,1742132469178,-392.83916764,0.00030347,2]
[356243313,1742132469200,-193.95,0.0003144,2]
[356243314,1742132470111,151.0,0.00030074,7]
[356243315,1742132474763,205.31393456,0.000309,5]
[356243316,1742132593966,-5682.31,0.000301,2]
[356243317,1742132593989,-161.296739,0.00032575,30]
[356243318,1742132594012,-193.95,0.00032809,2]
[356243319,1742132594034,-161.296739,0.00033812,30]
[356243320,1742132594056,-193.95,0.00034179,2]
[356243321,1742132594083,-205.31393456,0.00034483,6]
[356243322,1742132594105,-8521.49,0.00035,120]
[356243323,1742132594127,-161.296739,0.0003505,30]
[356243324,1742132594148,-21092.92316815,0.0003511,30]
[356243325,1742132594170,-500.0,0.00035142,2]
[356243326,1742132594191,-164.96,0.00035143,2]
[356243327,1742132594213,-193.95,0.00035549,2]
[356243328,1742132594233,-200.0,0.00035616,60]
[356243329,1742132594255,-455.57,0.00035822,2]
[356243330,1742132594277,-500.0,0.00036192,2]
[356243331,1742132594302,-2000.0,0.000366,120]
[356243332,1742132594323,-200.0,0.00036628,2]
[356243333,1742132594345,-1981.53,0.00036628,2]
[356243334,1742132594366,-1883.66,0.00036628,2]
[356243335,1742132594389,-23900.0,0.00036628,2]
[356243336,1742132594412,-250.0,0.00036628,2]
[356243337,1742132594434,-1000.0,0.00036689,5]
[356243338,1742132594457,-193.95,0.00036919,2]
[356243339,1742132594479,-538.35,0.00036921,2]
[356243340,1742132594501,-200.0,0.00037126,2]
[356243341,1742132594523,-500.0,0.00037186,2]
[356243342,1742132594546,-205.31393456,0.00038067,8]
[356243343,1742132594568,-193.95,0.00038289,2]
[356243344,1742132594591,-500.0,0.00038356,15]
[356243345,1742132594615,-275.93288488,0.00038356,15]
[356243346,1742132594639,-500.0,0.00038356,15]
[356243347,1742132594663,-500.0,0.00038356,15]
[356243348,1742132594686,-500.0,0.00038356,15]
[356243349,1742132594709,-310.51006471,0.00038356,15]
[356243350,1742132594733,-10300.83713073,0.00039,120]
[356243351,1742132630052,151.0,0.00030074,7]
[356243352,1742132633385,151.0,0.00030074,7]
[356243353,1742132637897,205.31393456,0.000309,5]
[356243354,1742132638320,205.31393456,0.00035233,7]
[356243355,1742132676556,1333.33333,0.00038289,63]
[356243356,1742132732566,-150.0,0.00034548,10]
[356243357,1742132739631,151.0,0.00030074,7]
[356243358,1742132739889,152.00902,0.00030074,7]
[356243361,1742132795896,-151.0,0.00030074,7]
[356243362,1742132795920,-123.61,0.000301,2]
[356243368,1742132931035,-200.0,0.000294,10]
[356243369,1742132931063,-500.0,0.000295,10]
[356243370,1742132931089,-700.0,0.000296,10]
[356243371,1742132931115,-1000.0,0.000297,10]
[356243372,1742132931142,-1300.0,0.000298,10]
[356243373,1742132931168,-200.0,0.000299,10]
[356243374,1742132931193,-53532.57768477,0.00029973,2]
[356243375,1742132931218,-1142.11187888,0.00029974,2]
[356243376,1742132931244,-185.26361964,0.00030073,2]
[356243377,1742132931269,-151.0,0.00030073,7]
[356243378,1742132931294,-151.0,0.00030073,7]
[356243379,1742132931318,-151.0,0.00030073,7]
[356243380,1742132931348,-151.0,0.00030074,7]
[356243381,1742132931373,-151.0,0.00030074,7]
[356243384,1742132951768,356.34025715,0.00029973,2]
[356243386,1742132975812,151.0,0.00030073,7]
[356243387,1742132981202,6983.36757926,0.00029973,2]
[356243388,1742132981724,151.0,0.00030073,7]
[356243404,1742133032159,-17038.4,0.00030073,30]
[356243405,1742133032277,-27088.40672516,0.00030073,30]
[356243406,1742133032449,-2526.78,0.00030073,30]
[356243427,1742133038096,-4719.99999,0.00030073,30]
[356243429,1742133038108,-5805.87,0.00030073,30]
[356243433,1742133038157,-1105.0,0.00030073,30]
[356243434,1742133038168,-853.02000001,0.00030073,30]
[356243435,1742133038217,-5671.26740371,0.00030073,30]
[356243436,1742133038279,-12679.69720377,0.00030073,30]
[356243437,1742133038291,-83028.00000002,0.00030073,30]
[356243490,1742133040402,-401.84857591,0.00030073,30]
[356243491,1742133040472,-590.60482205,0.00030073,30]
[356243492,1742133040484,-372.41122345,0.00030073,30]
[356243493,1742133040497,-264.34299467,0.00030073,30]
[356243494,1742133040509,-2100.05512954,0.00030073,30]
[356243495,1742133040522,-4128.97177876,0.00030073,30]
[356243496,1742133040535,-606.05829084,0.00030073,30]
[356243497,1742133040551,-335427.89060509,0.00030073,30]
[356243498,1742133040564,-1376.2714883,0.00030073,30]
[356243499,1742133040597,-324.31961641,0.00030073,30]
[356243500,1742133040610,-777.30004535,0.00030073,30]
[356243501,1742133040621,-24488.756204,0.00030073,30]
[356243502,1742133040658,-311.26588213,0.00030073,30]
[356243503,1742133040670,-34430.93862785,0.00030073,30]
[356243504,1742133040683,-2012.89600277,0.00030073,30]
[356243505,1742133040719,-1950.0,0.00030073,30]
[356243518,1742133043244,-7719.11871088,0.00030073,30]
[356243528,1742133044852,-863.786817,0.00030073,30]
[356243529,1742133044865,-19254.49772415,0.00030073,30]
[356243530,1742133044878,-778.79,0.00030073,30]
[356243531,1742133044891,-2985.63334832,0.00030073,30]
[356243532,1742133044904,-2103.07127227,0.00030073,30]
[356243565,1742133047401,-5347929.90797917,0.00030073,30]
[356243566,1742133047411,-1036171.17256025,0.00030073,30]
[356243567,1742133047424,-484.9,0.00030073,30]
[356243568,1742133047437,-1938.23795125,0.00030073,30]
[356243569,1742133047452,-8320.9,0.00030073,30]
[356243570,1742133047464,-1011.25530328,0.00030073,30]
[356243571,1742133776421,250.0,0.00019,2]
[356243586,1742134232278,-157.95,0.00026849,2]
[356243587,1742134232288,-147.77859,0.00028989,2]
[356243588,1742134232445,-152.22141,0.00028989,2]
[356243589,1742134232455,-2452.99330463,0.0002899,7]
[356243590,1742134232467,-2715.57995216,0.0002899,7]
[356243591,1742134232478,-586.2,0.0002899,7]
[356243598,1742134232906,-4245.2267442,0.0002899,7]
[356243599,1742134232915,-194.72166514,0.000298,2]
[356243600,1742134232926,-287.934384,0.000299,5]
[356243601,1742134232936,-1179.41712476,0.00029958,2]
[356243602,1742134232946,-6000.0,0.0003,2]
[356243603,1742134232955,-820.0,0.0003,30]
[356243604,1742134232964,-2033.67214417,0.0003,2]
[356243605,1742134232974,-164.83930715,0.0003,3]
[356243606,1742134232983,-3026.612,0.00030044,24]
[356243607,1742134232993,-235.647,0.00030044,24]
[356243608,1742134233002,-150.0,0.00030057,2]
[356243609,1742134233012,-39879.2191629,0.00030058,30]
[356243610,1742134233022,-167.06778147,0.00030058,60]
[356243611,1742134233032,-110679.53530671,0.00030058,30]
[356243612,1742134233042,-24807.9289795,0.00030058,30]
[356243613,1742134233053,-718.0323787,0.00030058,30]
[356243614,1742134233065,-305.72859,0.00030058,30]
[356243615,1742134233077,-874.96260798,0.00030058,30]
[356243639,1742134238350,-1731.16,0.00030058,30]
[356243643,1742134238381,-1921.89,0.00030058,30]
[356243644,1742134238491,-18115.89266839,0.00030058,30]
[356243645,1742134238503,-243485.87074356,0.00030058,30]
[356243646,1742134238513,-19738.18350421,0.00030058,2]
[356243647,1742134238523,-1975.12198275,0.00030058,120]
[356243648,1742134238534,-151.0,0.00030073,7]
[356243649,1742134238544,-8667.2868919,0.00030073,7]
[356243650,1742134238554,-1361.525,0.000301,45]
[356243651,1742134238563,-1296.0,0.00030189,2]
[356243652,1742134238573,-250.0,0.00030956,2]
[356243653,1742134238582,-23900.0,0.00031356,2]
[356243654,1742134238592,-287.93438391,0.00032314,6]
[356243655,1742134238601,-1296.0,0.00032452,2]
[356243656,1742134238612,-1500.0,0.00033256,2]
[356243657,1742134238623,-328.73387633,0.00033483,2]
[356243658,1742134238632,-181.92,0.00033501,2]
[356243659,1742134238642,-181.62,0.00033867,2]
[356243660,1742134238651,-157.95,0.00034192,2]
[356243661,1742134238661,-1296.0,0.00034716,2]
[356243662,1742134238671,-287.93438391,0.00034728,7]
[356243663,1742134238680,-1361.525,0.000351,45]
[356243664,1742134238690,-1296.0,0.0003698,2]
[356243665,1742134238700,-287.93438391,0.00037141,7]
[356243666,1742134238710,-3934.0,0.00037721,2]
[356243667,1742134238720,-151.0,0.00037721,2]
[356243668,1742134238729,-884.51,0.00037721,2]
[356243669,1742134238738,-200.0,0.00037773,2]
[356243670,1742134238748,-500.0,0.00037997,2]
[356243671,1742134238758,-200.0,0.000382,60]
[356243672,1742134238768,-500.0,0.00038356,15]
[356243673,1742134238777,-500.0,0.00038356,15]
[356243674,1742134238786,-500.0,0.00038356,15]
[356243675,1742134238796,-500.0,0.00038356,15]
[356243676,1742134238807,-500.0,0.00038356,15]
[356243677,1742134238821,-500.0,0.00038356,15]
[356243678,1742134238831,-500.0,0.00038356,15]
[356243679,1742134238847,-500.0,0.00038356,15]
[356243680,1742134238859,-500.0,0.00038356,15]
[356243681,1742134238868,-500.0,0.00038356,15]
[356243682,1742134238879,-253.17168285,0.00038356,15]
[356243683,1742134238890,-500.0,0.00038356,15]
[356243684,1742134238900,-500.0,0.00038356,15]
[356243685,1742134238910,-500.0,0.00038356,15]
[356243686,1742134238921,-500.0,0.00038356,15]
[356243687,1742134238931,-500.0,0.00038356,15]
[356243688,1742134238940,-500.0,0.00038356,15]
[356243689,1742134238950,-500.0,0.00038356,15]
[356243690,1742134238961,-500.0,0.00038356,15]
[356243691,1742134238971,-500.0,0.00038356,15]
[356243692,1742134238981,-500.0,0.00038356,15]
[356243693,1742134238991,-500.0,0.00038356,15]
[356243694,1742134239002,-500.0,0.00038356,15]
[356243695,1742134239012,-507.3430357,0.00038356,15]
[356243696,1742134239023,-500.0,0.00038356,15]
[356243697,1742134239032,-500.0,0.00038356,15]
[356243698,1742134239042,-689.78,0.00038388,2]
[356243699,1742134239051,-1487.45,0.0003845,120]
[356243700,1742134239061,-502.4454,0.00038888,30]
[356243701,1742134239071,-150.0,0.000391,120]
[356243702,1742134239081,-1426.69,0.00039106,2]
[356243703,1742134239091,-1000.0,0.00039184,2]
[356243704,1742134239101,-1296.0,0.00039244,2]
[356243705,1742134239113,-181.62,0.00039457,2]
[356243706,1742134239122,-2000.0,0.00039457,120]
[356243707,1742134239133,-150.08,0.00039512,120]
[356243708,1742134239143,-287.93438391,0.00039555,8]
[356243709,1742134239153,-200.0,0.0004,120]
[356243710,1742134239162,-216.0,0.0004,60]
[356243711,1742134239172,-506.71472055,0.0004,120]
[356243712,1742134239181,-1361.525,0.000401,45]
[356243713,1742134239191,-264.81,0.00040218,120]
[356243714,1742134239200,-150.0,0.000407,120]
[356243715,1742134239209,-786.0,0.00040721,2]
[356243716,1742134239219,-907.0,0.00040721,2]
[356243717,1742134239228,-1428.0,0.00040721,2]
[356243718,1742134239238,-4079.0,0.00040721,2]
[356243719,1742134239247,-1271.0,0.00040721,2]
[356243720,1742134239256,-541.0,0.00040721,2]
[356243721,1742134239266,-1000.0,0.00041095,120]
[356243722,1742134239276,-1000.0,0.00041123,120]
[356243723,1742134239286,-1000.0,0.0004115,120]
[356243724,1742134239295,-1000.0,0.00041178,120]
[356243725,1742134239305,-1000.0,0.00041205,120]
[356243726,1742134239314,-1000.0,0.00041232,120]
[356243727,1742134239324,-1000.0,0.0004126,120]
[356243728,1742134239334,-1000.0,0.00041287,120]
[356243729,1742134239343,-1000.0,0.00041315,120]
[356243730,1742134239352,-1000.0,0.00041342,120]
[356243731,1742134239365,-1000.0,0.00041369,120]
[356243732,1742134239375,-1000.0,0.00041397,120]
[356243733,1742134239385,-1000.0,0.00041424,120]
[356243734,1742134239394,-1000.0,0.00041452,120]
[356243735,1742134239404,-1000.0,0.00041479,120]
[356243736,1742134239413,-1000.0,0.00041506,120]
[356243737,1742134239424,-1296.0,0.00041508,2]
[356243738,1742134239434,-1000.0,0.00041534,120]
[356243739,1742134239444,-157.95,0.00041534,2]
[356243740,1742134239454,-1000.0,0.00041561,120]
[356243741,1742134239464,-1000.0,0.00041589,120]
[356243742,1742134239473,-1000.0,0.00041616,120]
[356243743,1742134239485,-1000.0,0.00041643,120]
[356243744,1742134239495,-1000.0,0.00041671,120]
[356243745,1742134239505,-1000.0,0.00041698,120]
[356243746,1742134239515,-658.6,0.00041726,120]
[356243747,1742134239527,-287.93438391,0.00041969,9]
[356243748,1742134239537,-167.24,0.00042009,2]
[356243749,1742134239547,-150.0,0.000423,120]
[356243750,1742134239557,-151.05,0.00042358,2]
[356243751,1742134239568,-156.66,0.00042583,2]
[356243752,1742134239579,-151.05,0.00042593,2]
[356243753,1742134239590,-151.05,0.00042828,2]
[356243754,1742134239600,-151.05,0.00043064,2]
[356243755,1742134239615,-1487.45,0.00043256,120]
[356243756,1742134239625,-151.05,0.00043299,2]
[356243757,1742134239637,-151.05,0.00043534,2]
[356243758,1742134239647,-474.308,0.00043721,2]
[356243759,1742134239658,-151.05,0.0004377,2]
[356243760,1742134239668,-1296.0,0.00043772,2]
[356243761,1742134239679,-1715.0,0.000439,7]
[356243762,1742134239689,-150.0,0.000439,120]
[356243763,1742134239699,-151.05,0.00044005,2]
[356243764,1742134239709,-1000.0,0.00044082,2]
[356243765,1742134239719,-151.05,0.0004424,2]
[356243766,1742134239729,-287.93438391,0.00044383,10]
[356243767,1742134239738,-151.05,0.00044476,2]
[356243768,1742134239748,-1361.525,0.000451,45]
[356243769,1742134239758,-500.0,0.00045164,120]
[356243770,1742134239768,-264.81,0.00045246,120]
[356243771,1742134239777,-150.0,0.000455,120]
[356243772,1742134239787,-213.0,0.0004571,30]
[356243773,1742134239797,-1296.0,0.00046036,2]
[356243774,1742134239806,-472.33,0.00046155,8]
[356243775,1742134239816,-150.0,0.00046354,2]
[356243776,1742134239826,-150.0,0.00046357,2]
[356243777,1742134239836,-150.0,0.00046404,2]
[356243778,1742134239846,-150.0,0.00046548,30]
[356243779,1742134239865,-150.0,0.00046548,30]
[356243780,1742134239875,-150.0,0.00046548,30]
[356243781,1742134239886,-150.0,0.00046548,30]
[356243782,1742134239896,-96289.3028019,0.00046555,3]
[356243783,1742134239906,-176.97,0.00046564,120]
[356243784,1742134239915,-151.0,0.00046565,14]
[356243785,1742134239925,-151.0,0.00046565,14]
[356243786,1742134239935,-151.0,0.00046565,14]
[356243787,1742134239946,-163691.814763,0.00046565,3]
[356243788,1742134239957,-32920.6715883,0.00046565,3]
[356243789,1742134239967,-500.0,0.00046573,10]
[356243790,1742134239978,-999.0,0.00046573,120]
[356243791,1742134239988,-500.0,0.00046574,7]
[356243792,1742134239999,-151.0,0.00046575,14]
[356243793,1742134240009,-151.0,0.00046575,14]
[356243794,1742134240019,-151.0,0.00046575,14]
[356243795,1742134240029,-211.850897,0.00046575,14]
[356243796,1742134240039,-165.532252,0.00046575,14]
[356243797,1742134240049,-1094.59634,0.00046575,120]
[356243798,1742134240060,-1094.59634,0.00046575,120]
[356243799,1742134240069,-1094.59634,0.00046575,120]
[356243800,1742134240080,-500.0,0.00046575,2]
[356243801,1742134240091,-500.0,0.00046575,2]
[356243802,1742134240102,-500.0,0.00046575,2]
[356243803,1742134240113,-156.801182,0.00046575,120]
[356243804,1742134240123,-156.801182,0.00046575,120]
[356243805,1742134240133,-500.0,0.00046575,120]
[356243806,1742134240143,-501.40891227,0.00046575,120]
[356243807,1742134240152,-151.215968,0.00046575,120]
[356243808,1742134240162,-501.1843386,0.00046575,120]
[356243809,1742134240171,-151.0,0.00046575,14]
[356243810,1742134240181,-151.0,0.00046575,14]
[356243811,1742134240191,-151.0,0.00046575,14]
[356243812,1742134240204,-1720.49856,0.00046575,120]
[356243813,1742134240214,-152.071154,0.00046575,14]
[356243814,1742134240224,-1720.49856,0.00046575,120]
[356243815,1742134240233,-1720.49856,0.00046575,120]
[356243816,1742134240243,-589.67284289,0.00046575,2]
[356243817,1742134240252,-151.0,0.00046575,14]
[356243818,1742134240262,-151.0,0.00046575,14]
[356243819,1742134240272,-180.872518,0.00046575,14]
[356243820,1742134240282,-500.0,0.00046575,120]
[356243821,1742134240291,-500.0,0.00046575,120]
[356243822,1742134240300,-151.0,0.00046575,14]
[356243823,1742134240309,-151.0,0.00046575,14]
[356243824,1742134240319,-152.038015,0.00046575,14]
[356243825,1742134240328,-226.122438,0.00046575,14]
[356243826,1742134240337,-151.0,0.00046575,14]
[356243827,1742134240347,-253.445821,0.00046575,14]
[356243828,1742134240356,-151.0,0.00046575,14]
[356243830,1742134240366,-152.6808,0.00046575,14]
[356243832,1742134240376,-500.0,0.00046575,120]
[356243833,1742134240386,-500.0,0.00046575,120]
[356243834,1742134240396,-500.0,0.00046575,120]
[356243835,1742134240405,-500.0,0.00046575,120]
[356243836,1742134240415,-500.0,0.00046575,120]
[356243837,1742134240425,-263.51,0.00046575,120]
[356243838,1742134240434,-500.0,0.00046575,120]
[356243839,1742134240444,-500.0,0.00046575,120]
[356243840,1742134240454,-500.0,0.00046575,120]
[356243841,1742134240464,-500.0,0.00046575,120]
[356243842,1742134240473,-500.0,0.00046575,120]
[356243843,1742134240482,-500.0,0.00046575,120]
[356243844,1742134240492,-500.0,0.00046575,120]
[356243845,1742134240502,-500.0,0.00046575,120]
[356243846,1742134240512,-500.0,0.00046575,120]
[356243847,1742134240521,-500.0,0.00046575,120]
[356243848,1742134240531,-500.0,0.00046575,120]
[356243849,1742134240540,-614.96,0.00046575,120]
[356243850,1742134240549,-500.0,0.00046575,120]
[356243851,1742134240559,-500.0,0.00046575,120]
[356243852,1742134240568,-500.0,0.00046575,120]
[356243853,1742134240577,-500.0,0.00046575,120]
[356243854,1742134240587,-500.0,0.00046575,120]
[356243855,1742134240597,-500.0,0.00046575,120]
[356243856,1742134240607,-500.0,0.00046575,120]
[356243857,1742134240617,-509.2909709,0.00046575,120]
[356243858,1742134240628,-500.0,0.00046575,120]
[356243859,1742134240638,-500.0,0.00046575,120]
[356243860,1742134240648,-500.0,0.00046575,120]
[356243861,1742134240658,-500.0,0.00046575,120]
[356243862,1742134240667,-537.43,0.00046575,120]
[356243863,1742134240677,-500.0,0.00046575,120]
[356243864,1742134240686,-500.0,0.00046575,120]
[356243865,1742134240701,-500.0,0.00046575,120]
[356243866,1742134240711,-500.0,0.00046575,120]
[356243867,1742134240720,-500.0,0.00046575,120]
[356243868,1742134240730,-500.0,0.00046575,120]
[356243869,1742134240739,-500.0,0.00046575,120]
[356243870,1742134240749,-345.28,0.00046575,120]
[356243871,1742134240758,-500.0,0.00046575,120]
[356243872,1742134240768,-500.0,0.00046575,120]
[356243873,1742134240778,-500.0,0.00046575,120]
[356243874,1742134240788,-347.94,0.00046575,120]
[356243875,1742134240798,-506.90079378,0.00046575,120]